[Event "*** SCC Grand Prix: Titled Tuesday Blitz"]
[Site "Chess.com"]
[Date "2020.07.14"]
[Round "3"]
[White "davidkalashian"]
[Black "atalz0"]
[Result "1/2-1/2"]
[WhiteElo "2568"]
[BlackElo "2394"]
[TimeControl "180+1"]
[EndTime "10:29:01 PDT"]
[Termination "Game drawn by repetition"]

1. e4 {[%clk 0:03:00.9]} 1... d5 {[%clk 0:02:59.9]} 2. exd5 {[%clk 0:03:00]}
2... Nf6 {[%clk 0:03:00.4]} 3. d4 {[%clk 0:02:58.9]} 3... Nxd5 {[%clk
0:03:00.5]} 4. Nf3 {[%clk 0:02:55.6]} 4... Bg4 {[%clk 0:03:00]} 5. Nc3 {[%clk
0:02:49.8]} 5... e6 {[%clk 0:02:55.4]} 6. Be2 {[%clk 0:02:48]} 6... Nc6 {[%clk
0:02:54]} 7. Ne4 {[%clk 0:02:41.4]} 7... Bf5 {[%clk 0:02:29.6]} 8. Ng3 {[%clk
0:02:38.9]} 8... Bg6 {[%clk 0:02:29.7]} 9. c3 {[%clk 0:02:39]} 9... Bd6 {[%clk
0:02:27.3]} 10. Bb5 {[%clk 0:02:31.5]} 10... O-O {[%clk 0:02:25.5]} 11. Qe2
{[%clk 0:02:26.2]} 11... Nf4 {[%clk 0:02:17.7]} 12. Bxf4 {[%clk 0:02:23.1]}
12... Bxf4 {[%clk 0:02:18.6]} 13. Bxc6 {[%clk 0:02:15.4]} 13... bxc6 {[%clk
0:02:19.5]} 14. Ne5 {[%clk 0:02:15.9]} 14... Qd5 {[%clk 0:02:14.1]} 15. Nxg6
{[%clk 0:02:08.2]} 15... hxg6 {[%clk 0:02:13.1]} 16. O-O {[%clk 0:02:01.5]}
16... c5 {[%clk 0:02:12.6]} 17. Rfd1 {[%clk 0:01:50.9]} 17... Rab8 {[%clk
0:02:09.5]} 18. b3 {[%clk 0:01:39.7]} 18... Rfd8 {[%clk 0:02:00.8]} 19. c4
{[%clk 0:01:35.3]} 19... Qc6 {[%clk 0:01:52.6]} 20. dxc5 {[%clk 0:01:27.3]}
20... Bxg3 {[%clk 0:01:41.5]} 21. hxg3 {[%clk 0:01:25.5]} 21... Qxc5 {[%clk
0:01:41.9]} 22. Qe4 {[%clk 0:01:20.4]} 22... a5 {[%clk 0:01:39.7]} 23. Qh4
{[%clk 0:01:13.5]} 23... g5 {[%clk 0:01:36.8]} 24. Qe4 {[%clk 0:01:07.9]} 24...
g6 {[%clk 0:01:22.4]} 25. Qe2 {[%clk 0:01:01.3]} 25... a4 {[%clk 0:01:18.2]} 26.
bxa4 {[%clk 0:00:55.8]} 26... Rxd1+ {[%clk 0:00:57.8]} 27. Rxd1 {[%clk
0:00:56.7]} 27... Rb4 {[%clk 0:00:57.9]} 28. Qf3 {[%clk 0:00:46.1]} 28... Rxc4
{[%clk 0:00:45.9]} 29. Qf6 {[%clk 0:00:27.1]} 29... Rc1 {[%clk 0:00:44.6]} 30.
Rxc1 {[%clk 0:00:23.1]} 30... Qxc1+ {[%clk 0:00:45.5]} 31. Kh2 {[%clk 0:00:24]}
31... Qc4 {[%clk 0:00:20.3]} 32. a5 {[%clk 0:00:20.8]} 32... Qxa2 {[%clk
0:00:18.9]} 33. Qd8+ {[%clk 0:00:20.5]} 33... Kg7 {[%clk 0:00:15.2]} 34. Qxc7
{[%clk 0:00:21]} 34... Qxf2 {[%clk 0:00:14.4]} 35. a6 {[%clk 0:00:20.1]} 35...
Qe2 {[%clk 0:00:09.9]} 36. a7 {[%clk 0:00:16.9]} 36... Qh5+ {[%clk 0:00:09.2]}
37. Kg1 {[%clk 0:00:17.1]} 37... Qd1+ {[%clk 0:00:09.7]} 38. Kf2 {[%clk
0:00:17]} 38... Qd2+ {[%clk 0:00:08.2]} 39. Kf3 {[%clk 0:00:17.3]} 39... Qd3+
{[%clk 0:00:08]} 40. Kf2 {[%clk 0:00:12.7]} 40... Qd2+ {[%clk 0:00:08.1]} 41.
Kf1 {[%clk 0:00:13]} 41... Qd1+ {[%clk 0:00:08.4]} 42. Kf2 {[%clk 0:00:13.6]}
42... Qd2+ {[%clk 0:00:08.7]} 1/2-1/2

[Event "*** SCC Grand Prix: Titled Tuesday Blitz"]
[Site "Chess.com"]
[Date "2020.07.14"]
[Round "3"]
[White "Artem_Sadovsky"]
[Black "northridgehawk"]
[Result "1-0"]
[WhiteElo "2551"]
[BlackElo "2355"]
[TimeControl "180+1"]
[EndTime "10:29:03 PDT"]
[Termination "Artem_Sadovsky won by resignation"]

1. Nf3 {[%clk 0:03:00.9]} 1... Nf6 {[%clk 0:02:57]} 2. c4 {[%clk 0:03:01.5]}
2... g6 {[%clk 0:02:56.9]} 3. b3 {[%clk 0:03:02]} 3... Bg7 {[%clk 0:02:55.2]} 4.
Bb2 {[%clk 0:03:02.7]} 4... O-O {[%clk 0:02:54.2]} 5. g3 {[%clk 0:03:03.2]} 5...
d5 {[%clk 0:02:53]} 6. Bg2 {[%clk 0:03:03.3]} 6... c6 {[%clk 0:02:47.1]} 7. O-O
{[%clk 0:03:03.6]} 7... a5 {[%clk 0:02:46.3]} 8. d3 {[%clk 0:03:03.1]} 8... Nbd7
{[%clk 0:02:45.8]} 9. Nbd2 {[%clk 0:03:03.5]} 9... Re8 {[%clk 0:02:45.2]} 10.
Qc2 {[%clk 0:03:03]} 10... e5 {[%clk 0:02:44.6]} 11. cxd5 {[%clk 0:03:03.5]}
11... Nxd5 {[%clk 0:02:41.5]} 12. Nc4 {[%clk 0:03:02.2]} 12... Qc7 {[%clk
0:02:39]} 13. Rac1 {[%clk 0:02:54.1]} 13... f6 {[%clk 0:02:25.9]} 14. Nfd2
{[%clk 0:02:49.9]} 14... N7b6 {[%clk 0:02:24.9]} 15. Ne4 {[%clk 0:02:44.3]}
15... Be6 {[%clk 0:02:21.1]} 16. Nc5 {[%clk 0:02:28.4]} 16... Bf7 {[%clk
0:02:17]} 17. a3 {[%clk 0:02:15]} 17... h5 {[%clk 0:02:11.1]} 18. Rfd1 {[%clk
0:02:13.9]} 18... Bh6 {[%clk 0:02:10.6]} 19. e3 {[%clk 0:02:08.9]} 19... a4
{[%clk 0:02:08.5]} 20. b4 {[%clk 0:02:07.7]} 20... Kh7 {[%clk 0:01:56.9]} 21.
Na5 {[%clk 0:01:57.1]} 21... Ra7 {[%clk 0:01:51.9]} 22. d4 {[%clk 0:01:50.5]}
22... Nd7 {[%clk 0:01:22.1]} 23. Nxd7 {[%clk 0:01:34.1]} 23... Qxd7 {[%clk
0:01:23]} 24. dxe5 {[%clk 0:01:34.6]} 24... Qe6 {[%clk 0:00:56.3]} 25. Rxd5
{[%clk 0:01:25.8]} 25... cxd5 {[%clk 0:00:57.2]} 26. exf6 {[%clk 0:01:26.3]}
26... b6 {[%clk 0:00:27.1]} 27. Nc6 {[%clk 0:01:23.3]} 27... Rc7 {[%clk
0:00:26.8]} 28. Bd4 {[%clk 0:01:14.3]} 28... Rec8 {[%clk 0:00:26.6]} 29. b5
{[%clk 0:01:14.8]} 29... Kg8 {[%clk 0:00:21.8]} 30. Qxa4 {[%clk 0:00:35.9]}
30... Bf8 {[%clk 0:00:21.4]} 31. Bxb6 {[%clk 0:00:29.1]} 31... Rb7 {[%clk
0:00:17.5]} 32. Bd4 {[%clk 0:00:26.6]} 32... Rbc7 {[%clk 0:00:15]} 33. Qb3
{[%clk 0:00:22.7]} 33... Rxc6 {[%clk 0:00:14.4]} 34. bxc6 {[%clk 0:00:22]} 34...
Rxc6 {[%clk 0:00:13.9]} 35. Rxc6 {[%clk 0:00:22.9]} 35... Qxc6 {[%clk
0:00:14.2]} 36. h4 {[%clk 0:00:18.6]} 36... Qc1+ {[%clk 0:00:14.5]} 37. Kh2
{[%clk 0:00:18.2]} 37... Qe1 {[%clk 0:00:15.4]} 38. Qb2 {[%clk 0:00:11.5]} 38...
g5 {[%clk 0:00:15.5]} 39. hxg5 {[%clk 0:00:11.1]} 39... h4 {[%clk 0:00:15.6]}
40. gxh4 {[%clk 0:00:11.4]} 40... Bd6+ {[%clk 0:00:16.1]} 41. Be5 {[%clk
0:00:12]} 41... Bxe5+ {[%clk 0:00:15.3]} 42. Qxe5 {[%clk 0:00:12.9]} 42... Qxf2
{[%clk 0:00:16]} 43. Qg3 {[%clk 0:00:10.7]} 43... Qa2 {[%clk 0:00:13.6]} 44. g6
{[%clk 0:00:10.7]} 44... Be6 {[%clk 0:00:14.1]} 45. Qb8+ {[%clk 0:00:09.9]} 1-0

[Event "*** SCC Grand Prix: Titled Tuesday Blitz"]
[Site "Chess.com"]
[Date "2020.07.14"]
[Round "3"]
[White "attack2mateU"]
[Black "penguingm1"]
[Result "0-1"]
[WhiteElo "2662"]
[BlackElo "2950"]
[TimeControl "180+1"]
[EndTime "10:29:06 PDT"]
[Termination "penguingm1 won by resignation"]

1. e4 {[%clk 0:03:00.9]} 1... e5 {[%clk 0:02:54.8]} 2. Nf3 {[%clk 0:03:00]} 2...
Nc6 {[%clk 0:02:54.7]} 3. Bb5 {[%clk 0:02:58.4]} 3... g6 {[%clk 0:02:51.2]} 4.
O-O {[%clk 0:02:53.3]} 4... Bg7 {[%clk 0:02:50.8]} 5. c3 {[%clk 0:02:53]} 5...
a6 {[%clk 0:02:51.1]} 6. Ba4 {[%clk 0:02:52.5]} 6... b5 {[%clk 0:02:51.5]} 7.
Bb3 {[%clk 0:02:51.8]} 7... Na5 {[%clk 0:02:51.8]} 8. d4 {[%clk 0:02:48.9]} 8...
exd4 {[%clk 0:02:49.2]} 9. cxd4 {[%clk 0:02:48.5]} 9... Ne7 {[%clk 0:02:33.6]}
10. Nc3 {[%clk 0:02:42.7]} 10... O-O {[%clk 0:02:30.7]} 11. a4 {[%clk
0:02:21.6]} 11... b4 {[%clk 0:02:14.9]} 12. Nd5 {[%clk 0:02:18]} 12... Nxd5
{[%clk 0:01:39.2]} 13. exd5 {[%clk 0:02:18.9]} 13... d6 {[%clk 0:01:30.3]} 14.
Bg5 {[%clk 0:02:14.6]} 14... Qd7 {[%clk 0:01:30.5]} 15. Re1 {[%clk 0:02:11.9]}
15... Bb7 {[%clk 0:01:27.7]} 16. Rc1 {[%clk 0:01:19.1]} 16... Nxb3 {[%clk
0:01:16.5]} 17. Qxb3 {[%clk 0:01:20]} 17... Qf5 {[%clk 0:01:16.7]} 18. Be7
{[%clk 0:00:59.1]} 18... Rfc8 {[%clk 0:00:47]} 19. Qxb4 {[%clk 0:00:55.9]} 19...
Bxd5 {[%clk 0:00:47]} 20. Qa5 {[%clk 0:00:45.3]} 20... Be6 {[%clk 0:00:18.8]}
21. Qxf5 {[%clk 0:00:43.3]} 21... Bxf5 {[%clk 0:00:19.7]} 22. Rc3 {[%clk
0:00:30.2]} 22... h5 {[%clk 0:00:09.6]} 23. Rec1 {[%clk 0:00:29.1]} 23... Rab8
{[%clk 0:00:07]} 24. h3 {[%clk 0:00:27.4]} 24... Rxb2 {[%clk 0:00:06.8]} 25.
Bxd6 {[%clk 0:00:27.4]} 25... Ra2 {[%clk 0:00:03.2]} 26. Rxc7 {[%clk 0:00:25.3]}
26... Rxc7 {[%clk 0:00:03.1]} 27. Rxc7 {[%clk 0:00:26.2]} 27... Rxa4 {[%clk
0:00:03.6]} 28. Ra7 {[%clk 0:00:14.7]} 28... Be4 {[%clk 0:00:02.9]} 29. Bc5
{[%clk 0:00:08.7]} 29... Ra1+ {[%clk 0:00:02.8]} 30. Kh2 {[%clk 0:00:08.7]}
30... Ra4 {[%clk 0:00:03.5]} 31. Ne5 {[%clk 0:00:07.4]} 31... Bd5 {[%clk
0:00:03.2]} 32. f3 {[%clk 0:00:07.1]} 32... Bf6 {[%clk 0:00:03.4]} 33. Nd7
{[%clk 0:00:06.9]} 33... Bg5 {[%clk 0:00:03.5]} 34. Nb6 {[%clk 0:00:07.1]} 34...
Bf4+ {[%clk 0:00:03.2]} 35. Kg1 {[%clk 0:00:07.3]} 35... Ra1+ {[%clk 0:00:03.5]}
36. Kf2 {[%clk 0:00:07.9]} 36... Ra2+ {[%clk 0:00:04.1]} 37. Ke1 {[%clk
0:00:07.3]} 37... Bb3 {[%clk 0:00:04]} 38. Ra8+ {[%clk 0:00:06.3]} 38... Kg7
{[%clk 0:00:04.1]} 39. Bf8+ {[%clk 0:00:06.3]} 39... Kf6 {[%clk 0:00:04.3]} 40.
Nd7+ {[%clk 0:00:05.7]} 40... Kf5 {[%clk 0:00:03.6]} 41. Re8 {[%clk 0:00:04.8]}
41... Bg3+ {[%clk 0:00:03.6]} 42. Kf1 {[%clk 0:00:03.7]} 42... Bc4+ {[%clk
0:00:04.2]} 43. Kg1 {[%clk 0:00:02.6]} 43... Ra1+ {[%clk 0:00:04.8]} 0-1

[Event "*** SCC Grand Prix: Titled Tuesday Blitz"]
[Site "Chess.com"]
[Date "2020.07.14"]
[Round "3"]
[White "ARMQUEEN"]
[Black "Jospem"]
[Result "0-1"]
[WhiteElo "2437"]
[BlackElo "2807"]
[TimeControl "180+1"]
[EndTime "10:29:07 PDT"]
[Termination "Jospem won by checkmate"]

1. e4 {[%clk 0:03:00.9]} 1... e5 {[%clk 0:02:51.1]} 2. Nf3 {[%clk 0:02:59.6]}
2... Nc6 {[%clk 0:02:49.2]} 3. d4 {[%clk 0:02:57.7]} 3... exd4 {[%clk
0:02:39.7]} 4. Nxd4 {[%clk 0:02:58.6]} 4... Nf6 {[%clk 0:02:38.6]} 5. Nxc6
{[%clk 0:02:58.4]} 5... bxc6 {[%clk 0:02:37.5]} 6. e5 {[%clk 0:02:58.5]} 6...
Qe7 {[%clk 0:02:26.8]} 7. Qe2 {[%clk 0:02:58.6]} 7... Nd5 {[%clk 0:02:26.5]} 8.
h4 {[%clk 0:02:56.2]} 8... d6 {[%clk 0:02:00.2]} 9. exd6 {[%clk 0:02:54]} 9...
cxd6 {[%clk 0:01:53.4]} 10. c4 {[%clk 0:02:50.8]} 10... Nb6 {[%clk 0:01:52.1]}
11. Be3 {[%clk 0:02:50]} 11... Be6 {[%clk 0:01:24.3]} 12. Qc2 {[%clk 0:02:44.7]}
12... g6 {[%clk 0:01:18.6]} 13. Qc3 {[%clk 0:02:39.4]} 13... f6 {[%clk
0:01:15.9]} 14. Nd2 {[%clk 0:02:37.7]} 14... Bg7 {[%clk 0:01:15.6]} 15. h5
{[%clk 0:02:36.3]} 15... f5 {[%clk 0:01:12.8]} 16. Qa3 {[%clk 0:02:19]} 16...
O-O {[%clk 0:00:58.6]} 17. hxg6 {[%clk 0:02:17.3]} 17... hxg6 {[%clk 0:00:58.2]}
18. g3 {[%clk 0:01:59.2]} 18... Rab8 {[%clk 0:00:49]} 19. Be2 {[%clk 0:01:51.9]}
19... g5 {[%clk 0:00:46.7]} 20. Qd3 {[%clk 0:01:18.9]} 20... Na4 {[%clk
0:00:37.5]} 21. Bd4 {[%clk 0:01:17.7]} 21... Nxb2 {[%clk 0:00:33.1]} 22. Qc3
{[%clk 0:01:16.4]} 22... Na4 {[%clk 0:00:24.6]} 23. Qe3 {[%clk 0:01:10.5]} 23...
Bxd4 {[%clk 0:00:22.2]} 24. Qxd4 {[%clk 0:01:10.3]} 24... Qf6 {[%clk 0:00:22.9]}
25. Qxf6 {[%clk 0:01:08.6]} 25... Rxf6 {[%clk 0:00:22.7]} 26. Nf3 {[%clk
0:01:08.3]} 26... g4 {[%clk 0:00:20.4]} 27. Nd4 {[%clk 0:01:08.3]} 27... Bd7
{[%clk 0:00:19.4]} 28. Rd1 {[%clk 0:00:59.7]} 28... Nc3 {[%clk 0:00:18.9]} 29.
Rc1 {[%clk 0:00:57.3]} 29... Ne4 {[%clk 0:00:13.5]} 30. Bd3 {[%clk 0:00:49.6]}
30... Re8 {[%clk 0:00:13.4]} 31. Kf1 {[%clk 0:00:45.6]} 31... f4 {[%clk
0:00:11.4]} 32. gxf4 {[%clk 0:00:45.3]} 32... Rxf4 {[%clk 0:00:12.1]} 33. Bxe4
{[%clk 0:00:40.3]} 33... Rfxe4 {[%clk 0:00:12.2]} 34. Rd1 {[%clk 0:00:40.3]}
34... g3 {[%clk 0:00:08.3]} 35. Rh6 {[%clk 0:00:37.5]} 35... gxf2 {[%clk
0:00:04.9]} 36. Kxf2 {[%clk 0:00:31.6]} 36... Rf8+ {[%clk 0:00:04.8]} 37. Kg2
{[%clk 0:00:22.9]} 37... Rg4+ {[%clk 0:00:05]} 38. Kh1 {[%clk 0:00:23.1]} 38...
Kg7 {[%clk 0:00:03.1]} 39. Rh2 {[%clk 0:00:18.9]} 39... c5 {[%clk 0:00:03.4]}
40. Nb5 {[%clk 0:00:09.4]} 40... Bc6+ {[%clk 0:00:03.7]} 41. Rd5 {[%clk
0:00:09.2]} 41... Bxd5+ {[%clk 0:00:03.9]} 42. cxd5 {[%clk 0:00:08.5]} 42...
Rf1# {[%clk 0:00:04.8]} 0-1

[Event "*** SCC Grand Prix: Titled Tuesday Blitz"]
[Site "Chess.com"]
[Date "2020.07.14"]
[Round "3"]
[White "Zhuu96"]
[Black "SGchess01"]
[Result "0-1"]
[WhiteElo "2831"]
[BlackElo "2623"]
[TimeControl "180+1"]
[EndTime "10:29:08 PDT"]
[Termination "SGchess01 won by resignation"]

1. e4 {[%clk 0:03:00.9]} 1... Nf6 {[%clk 0:02:58.9]} 2. e5 {[%clk 0:03:00]} 2...
Nd5 {[%clk 0:02:59.1]} 3. d4 {[%clk 0:03:00.5]} 3... d6 {[%clk 0:02:59.4]} 4.
Nf3 {[%clk 0:03:01]} 4... Nb6 {[%clk 0:02:59.3]} 5. Bd3 {[%clk 0:02:54.7]} 5...
g6 {[%clk 0:02:59.2]} 6. h4 {[%clk 0:02:54]} 6... Bg4 {[%clk 0:02:58.3]} 7. h5
{[%clk 0:02:51.3]} 7... gxh5 {[%clk 0:02:46.2]} 8. Nc3 {[%clk 0:02:47.6]} 8...
Nc6 {[%clk 0:02:45.5]} 9. exd6 {[%clk 0:02:40.7]} 9... Qxd6 {[%clk 0:02:36.4]}
10. Ne4 {[%clk 0:02:39]} 10... Qd5 {[%clk 0:02:03.7]} 11. Be3 {[%clk 0:02:17.4]}
11... O-O-O {[%clk 0:02:02.4]} 12. c3 {[%clk 0:02:12.7]} 12... e5 {[%clk
0:01:55.5]} 13. Nf6 {[%clk 0:02:10.8]} 13... Qe6 {[%clk 0:01:55.2]} 14. Nxg4
{[%clk 0:02:01.2]} 14... hxg4 {[%clk 0:01:56.1]} 15. Ng5 {[%clk 0:02:01.3]}
15... Qd7 {[%clk 0:01:55.3]} 16. Qc2 {[%clk 0:02:00.3]} 16... Kb8 {[%clk
0:01:54.6]} 17. Bf5 {[%clk 0:01:59.7]} 17... Qe8 {[%clk 0:01:54.3]} 18. dxe5
{[%clk 0:01:47.6]} 18... Nc4 {[%clk 0:01:39.1]} 19. Bf4 {[%clk 0:01:06.6]} 19...
h6 {[%clk 0:01:34]} 20. Ne4 {[%clk 0:01:00.2]} 20... N4xe5 {[%clk 0:01:24.5]}
21. O-O {[%clk 0:00:59.6]} 21... Bg7 {[%clk 0:01:16.5]} 22. Rfe1 {[%clk
0:00:58.5]} 22... Nd3 {[%clk 0:01:03]} 23. Bg3 {[%clk 0:00:40.5]} 23... Nxe1
{[%clk 0:01:01.7]} 24. Rxe1 {[%clk 0:00:39.5]} 24... Qf8 {[%clk 0:00:57.1]} 25.
b4 {[%clk 0:00:37.2]} 25... h5 {[%clk 0:00:39]} 26. Nc5 {[%clk 0:00:31.6]} 26...
h4 {[%clk 0:00:39.1]} 27. Bf4 {[%clk 0:00:27.3]} 27... g3 {[%clk 0:00:34.6]} 28.
f3 {[%clk 0:00:16.9]} 28... Bh6 {[%clk 0:00:19.3]} 29. Qc1 {[%clk 0:00:10.5]}
29... Bxf4 {[%clk 0:00:17.2]} 30. Qxf4 {[%clk 0:00:10.7]} 30... Qd6 {[%clk
0:00:17.9]} 31. Qg5 {[%clk 0:00:08.9]} 31... Qd2 {[%clk 0:00:14.3]} 32. Qxd2
{[%clk 0:00:06.6]} 32... Rxd2 {[%clk 0:00:14.8]} 33. b5 {[%clk 0:00:05.7]} 33...
Na5 {[%clk 0:00:13]} 34. Nd7+ {[%clk 0:00:05.8]} 34... Ka8 {[%clk 0:00:13.3]}
35. Ne5 {[%clk 0:00:05]} 35... Re8 {[%clk 0:00:12.7]} 36. f4 {[%clk 0:00:04.4]}
36... f6 {[%clk 0:00:12.9]} 37. Bg6 {[%clk 0:00:04.7]} 37... Re7 {[%clk
0:00:12.6]} 38. Nf3 {[%clk 0:00:05]} 38... Rxe1+ {[%clk 0:00:12]} 39. Nxe1
{[%clk 0:00:05.3]} 39... Nc4 {[%clk 0:00:11.7]} 40. Bh5 {[%clk 0:00:03.3]} 40...
Ne3 {[%clk 0:00:11.6]} 41. Bf3 {[%clk 0:00:03.7]} 41... Rxa2 {[%clk 0:00:11.8]}
0-1

[Event "*** SCC Grand Prix: Titled Tuesday Blitz"]
[Site "Chess.com"]
[Date "2020.07.14"]
[Round "3"]
[White "Vesper2018"]
[Black "IMHansNiemann"]
[Result "0-1"]
[WhiteElo "2579"]
[BlackElo "2868"]
[TimeControl "180+1"]
[EndTime "10:29:08 PDT"]
[Termination "IMHansNiemann won on time"]

1. e4 {[%clk 0:03:00.5]} 1... e6 {[%clk 0:02:45.1]} 2. d4 {[%clk 0:02:58.2]}
2... d5 {[%clk 0:02:45.1]} 3. e5 {[%clk 0:02:56.3]} 3... c5 {[%clk 0:02:44.4]}
4. c3 {[%clk 0:02:56.7]} 4... Bd7 {[%clk 0:02:41.9]} 5. Nf3 {[%clk 0:02:56.1]}
5... Qb6 {[%clk 0:02:42.1]} 6. Be2 {[%clk 0:02:50.4]} 6... Bb5 {[%clk
0:02:41.9]} 7. O-O {[%clk 0:02:50.2]} 7... Nc6 {[%clk 0:02:39.5]} 8. dxc5 {[%clk
0:02:46.4]} 8... Bxc5 {[%clk 0:02:36.7]} 9. b4 {[%clk 0:02:46.2]} 9... Bxe2
{[%clk 0:02:30.2]} 10. Qxe2 {[%clk 0:02:45.7]} 10... Be7 {[%clk 0:02:30.4]} 11.
Be3 {[%clk 0:02:40.8]} 11... Qc7 {[%clk 0:02:30.2]} 12. Nbd2 {[%clk 0:02:40]}
12... Nh6 {[%clk 0:02:25.7]} 13. Bxh6 {[%clk 0:02:34.6]} 13... gxh6 {[%clk
0:02:26.6]} 14. Nb3 {[%clk 0:02:34.8]} 14... Rg8 {[%clk 0:02:22.6]} 15. a3
{[%clk 0:02:29.6]} 15... Rc8 {[%clk 0:02:15.9]} 16. Rac1 {[%clk 0:02:23.7]}
16... Nd8 {[%clk 0:02:07.8]} 17. Nbd2 {[%clk 0:02:16.3]} 17... Bg5 {[%clk
0:02:00.8]} 18. c4 {[%clk 0:02:12.2]} 18... Bxd2 {[%clk 0:01:57.9]} 19. Nxd2
{[%clk 0:02:11.3]} 19... Nc6 {[%clk 0:01:31.1]} 20. f4 {[%clk 0:02:00.6]} 20...
Ne7 {[%clk 0:01:21]} 21. c5 {[%clk 0:01:44.9]} 21... Nf5 {[%clk 0:01:15]} 22.
Nf3 {[%clk 0:01:41.7]} 22... Ke7 {[%clk 0:01:10.6]} 23. Qd3 {[%clk 0:01:37.3]}
23... Rg4 {[%clk 0:01:09.2]} 24. Nd4 {[%clk 0:01:24.4]} 24... Nxd4 {[%clk
0:01:06]} 25. Qxd4 {[%clk 0:01:24.1]} 25... Rcg8 {[%clk 0:01:06.3]} 26. Rc2
{[%clk 0:01:21.1]} 26... Qc6 {[%clk 0:01:05.1]} 27. Rcf2 {[%clk 0:01:03.3]}
27... Qa4 {[%clk 0:01:01.1]} 28. Qd3 {[%clk 0:01:02.3]} 28... Qa6 {[%clk
0:00:47.8]} 29. Qxa6 {[%clk 0:00:29.7]} 29... bxa6 {[%clk 0:00:47.6]} 30. g3
{[%clk 0:00:29.4]} 30... Rb8 {[%clk 0:00:37.4]} 31. Rc1 {[%clk 0:00:28.7]} 31...
Rgg8 {[%clk 0:00:35.3]} 32. Rfc2 {[%clk 0:00:27]} 32... Rgc8 {[%clk 0:00:33.9]}
33. Kf2 {[%clk 0:00:26.8]} 33... a5 {[%clk 0:00:33.2]} 34. Rb1 {[%clk 0:00:19]}
34... Rb5 {[%clk 0:00:32.8]} 35. Ke3 {[%clk 0:00:14.6]} 35... axb4 {[%clk
0:00:31.1]} 36. axb4 {[%clk 0:00:13.9]} 36... a5 {[%clk 0:00:30.9]} 37. Ra2
{[%clk 0:00:09.7]} 37... axb4 {[%clk 0:00:29.9]} 38. Ra7+ {[%clk 0:00:09.7]}
38... Kf8 {[%clk 0:00:29.9]} 39. f5 {[%clk 0:00:05]} 39... exf5 {[%clk 0:00:27]}
40. Rf1 {[%clk 0:00:04.9]} 40... Rbxc5 {[%clk 0:00:25.8]} 41. Rxf5 {[%clk
0:00:05.1]} 41... R5c7 {[%clk 0:00:26.3]} 42. Rxc7 {[%clk 0:00:01.8]} 42... Rxc7
{[%clk 0:00:27.2]} 43. Kd4 {[%clk 0:00:02.4]} 43... b3 {[%clk 0:00:26]} 44. Rf1
{[%clk 0:00:02.1]} 44... b2 {[%clk 0:00:25.7]} 45. Rb1 {[%clk 0:00:02.4]} 45...
Rc2 {[%clk 0:00:26.1]} 46. Kxd5 {[%clk 0:00:02.7]} 46... Rxh2 {[%clk 0:00:26.6]}
47. Ke4 {[%clk 0:00:02.6]} 47... Kg7 {[%clk 0:00:26.9]} 48. Kf4 {[%clk
0:00:02.6]} 48... Kg6 {[%clk 0:00:27.2]} 49. Kg4 {[%clk 0:00:02.5]} 49... Rf2
{[%clk 0:00:25.8]} 50. Rd1 {[%clk 0:00:01.6]} 50... h5+ {[%clk 0:00:25.4]} 0-1

[Event "*** SCC Grand Prix: Titled Tuesday Blitz"]
[Site "Chess.com"]
[Date "2020.07.14"]
[Round "3"]
[White "NormWeinstein"]
[Black "Anton_Demchenko"]
[Result "1-0"]
[WhiteElo "2457"]
[BlackElo "2813"]
[TimeControl "180+1"]
[EndTime "10:29:10 PDT"]
[Termination "NormWeinstein won by resignation"]

1. e4 {[%clk 0:03:00.9]} 1... c6 {[%clk 0:02:58]} 2. d4 {[%clk 0:02:59.8]} 2...
d5 {[%clk 0:02:58.2]} 3. exd5 {[%clk 0:03:00.4]} 3... cxd5 {[%clk 0:02:58.5]} 4.
c4 {[%clk 0:03:00.8]} 4... Nf6 {[%clk 0:02:57.6]} 5. Nc3 {[%clk 0:03:01.2]} 5...
Nc6 {[%clk 0:02:57.9]} 6. Nf3 {[%clk 0:03:01.3]} 6... a6 {[%clk 0:02:58.5]} 7.
cxd5 {[%clk 0:02:59.1]} 7... Nxd5 {[%clk 0:02:57.8]} 8. Bc4 {[%clk 0:02:58.5]}
8... Be6 {[%clk 0:02:57.7]} 9. Bb3 {[%clk 0:02:56.7]} 9... Na5 {[%clk
0:02:57.8]} 10. Bc2 {[%clk 0:02:55.2]} 10... Nxc3 {[%clk 0:02:58]} 11. bxc3
{[%clk 0:02:54.5]} 11... Bd5 {[%clk 0:02:58.9]} 12. O-O {[%clk 0:02:50.8]} 12...
e6 {[%clk 0:02:58.8]} 13. Ne5 {[%clk 0:02:34.4]} 13... Nc4 {[%clk 0:02:42.3]}
14. Bf4 {[%clk 0:02:22.7]} 14... Nxe5 {[%clk 0:02:36.1]} 15. Bxe5 {[%clk
0:02:22.3]} 15... Bd6 {[%clk 0:02:36.4]} 16. Qh5 {[%clk 0:02:11.2]} 16... Bxe5
{[%clk 0:02:32.8]} 17. Qxe5 {[%clk 0:02:08]} 17... Qf6 {[%clk 0:02:30.2]} 18.
Qxf6 {[%clk 0:01:57]} 18... gxf6 {[%clk 0:02:30.2]} 19. Bb3 {[%clk 0:01:56.6]}
19... Bc6 {[%clk 0:02:30.5]} 20. c4 {[%clk 0:01:56.2]} 20... O-O-O {[%clk
0:02:25.2]} 21. Rad1 {[%clk 0:01:55]} 21... Rhe8 {[%clk 0:02:06.5]} 22. Rfe1
{[%clk 0:01:53]} 22... Kc7 {[%clk 0:02:05.9]} 23. f3 {[%clk 0:01:50.5]} 23... b5
{[%clk 0:01:51.6]} 24. d5 {[%clk 0:01:42.1]} 24... bxc4 {[%clk 0:01:48.8]} 25.
Bxc4 {[%clk 0:01:32.3]} 25... exd5 {[%clk 0:01:45.5]} 26. Rxe8 {[%clk
0:01:28.7]} 26... Rxe8 {[%clk 0:01:44.1]} 27. Bxd5 {[%clk 0:01:28.4]} 27... Bxd5
{[%clk 0:01:11.4]} 28. Rxd5 {[%clk 0:01:26.9]} 28... Re5 {[%clk 0:01:12.2]} 29.
Rd2 {[%clk 0:01:22.5]} 29... Kc6 {[%clk 0:01:07.3]} 30. Kf2 {[%clk 0:01:21.7]}
30... a5 {[%clk 0:01:00]} 31. a4 {[%clk 0:01:19.4]} 31... Rc5 {[%clk 0:00:39.8]}
32. Rd4 {[%clk 0:01:18.8]} 32... f5 {[%clk 0:00:07.9]} 33. Rh4 {[%clk
0:01:17.3]} 33... Kd6 {[%clk 0:00:05.1]} 34. Rxh7 {[%clk 0:01:14.9]} 34... Rc2+
{[%clk 0:00:04.6]} 35. Kg3 {[%clk 0:01:13.5]} 35... Rc4 {[%clk 0:00:03.2]} 36.
Rxf7 {[%clk 0:01:11.9]} 36... Ke6 {[%clk 0:00:03.8]} 37. Ra7 {[%clk 0:01:03.5]}
37... Rxa4 {[%clk 0:00:04.7]} 38. h4 {[%clk 0:01:01.9]} 38... Ra1 {[%clk
0:00:03.8]} 39. Kf4 {[%clk 0:00:59.8]} 39... a4 {[%clk 0:00:02.3]} 40. Ra6+
{[%clk 0:00:58]} 40... Kd5 {[%clk 0:00:02.8]} 41. Kxf5 {[%clk 0:00:57.5]} 41...
Kc5 {[%clk 0:00:03]} 42. g4 {[%clk 0:00:56.4]} 42... Kb5 {[%clk 0:00:03.9]} 43.
Ra8 {[%clk 0:00:55.7]} 43... Rf1 {[%clk 0:00:04.8]} 44. f4 {[%clk 0:00:55.2]}
44... Kb4 {[%clk 0:00:05.7]} 45. g5 {[%clk 0:00:54.7]} 45... a3 {[%clk
0:00:06.6]} 46. h5 {[%clk 0:00:53.5]} 46... Rc1 {[%clk 0:00:06.2]} 47. Kg4
{[%clk 0:00:39.9]} 47... Rc5 {[%clk 0:00:05.9]} 48. Re8 {[%clk 0:00:32.6]} 48...
a2 {[%clk 0:00:04.5]} 49. Re1 {[%clk 0:00:33.1]} 49... Kb3 {[%clk 0:00:04.8]}
50. Ra1 {[%clk 0:00:28]} 50... Kb2 {[%clk 0:00:03.9]} 51. Rxa2+ {[%clk
0:00:27.6]} 51... Kxa2 {[%clk 0:00:04.8]} 52. h6 {[%clk 0:00:27.4]} 52... Kb3
{[%clk 0:00:05.7]} 53. h7 {[%clk 0:00:27]} 53... Rc8 {[%clk 0:00:06.6]} 54. g6
{[%clk 0:00:26.4]} 54... Kc4 {[%clk 0:00:07.5]} 55. g7 {[%clk 0:00:26.3]} 55...
Kd4 {[%clk 0:00:08.4]} 1-0